bitfinex/quotes_BTCUSD_20240921
["timestamp","ask_amount","ask_price","bid_price","bid_amount"]
[1726936436991,0.001652,63263.0,63262.0,2.10107501]
[1726936437199,0.001652,63263.0,63262.0,1.78693001]
[1726936437422,0.002652,63263.0,63262.0,1.79293001]
[1726936438070,0.002652,63263.0,63262.0,2.10907501]
[1726936438517,0.001652,63269.0,63262.0,1.94600301]
[1726936438755,0.001652,63269.0,63268.0,1.20227373]
[1726936439167,0.001652,63269.0,63268.0,1.2489393]
[1726936439628,0.001652,63269.0,63268.0,1.29617661]
[1726936439892,0.001652,63269.0,63268.0,1.2489393]
[1726936440101,0.002652,63269.0,63268.0,1.42402488]
[1726936440321,0.002652,63269.0,63268.0,1.49489661]
[1726936440545,0.002652,63269.0,63268.0,1.42402488]
[1726936440998,0.003652,63269.0,63268.0,1.34262488]
[1726936441471,0.002652,63269.0,63268.0,1.33062488]
[1726936441712,0.003652,63269.0,63268.0,1.34362488]
[1726936446703,0.003652,63269.0,63268.0,0.8414243]
[1726936447113,0.02013721,63269.0,63268.0,0.8414243]
[1726936447656,0.01913721,63269.0,63268.0,0.8304243]
[1726936449081,0.01813721,63269.0,63268.0,0.8174243]
[1726936449318,0.01813721,63269.0,63268.0,0.95162377]
[1726936449963,0.01813721,63269.0,63268.0,0.94862377]
[1726936450407,0.01813721,63269.0,63268.0,0.95062377]
[1726936450649,0.01813721,63269.0,63268.0,0.95162377]
[1726936450887,0.01813721,63269.0,63268.0,0.95062377]
[1726936452186,0.01813721,63269.0,63268.0,0.95362377]
[1726936454253,0.01813721,63269.0,63268.0,1.26973877]
[1726936454490,0.01813721,63269.0,63268.0,0.95362377]
[1726936458958,0.01810182,63269.0,63268.0,0.95362377]
[1726936459217,0.13914548,63269.0,63268.0,0.0321373]
[1726936459675,0.13914548,63269.0,63268.0,0.1901943]
[1726936460128,0.13914548,63269.0,63268.0,0.1851943]
[1726936460358,0.13914548,63269.0,63268.0,0.0291373]
[1726936460598,0.13914548,63269.0,63268.0,0.0281373]
[1726936460832,0.30219915,63269.0,63268.0,0.0281373]
[1726936461058,0.77636415,63269.0,63268.0,0.0281373]
[1726936461289,0.77636415,63269.0,63268.0,0.003]
[1726936462069,0.77636415,63269.0,63268.0,0.002]
[1726936462322,0.77736415,63269.0,63268.0,0.002]
[1726936462818,0.77636415,63269.0,63268.0,0.002]
[1726936463079,0.78336415,63269.0,63268.0,0.003]
[1726936463548,0.79036415,63269.0,63268.0,0.004]
[1726936464262,0.79036771,63269.0,63268.0,0.004]
[1726936466919,0.47425771,63269.0,63268.0,0.004]
[1726936467156,1.10647771,63269.0,63268.0,0.004]
[1726936467626,1.10647771,63269.0,63268.0,0.002]
[1726936468120,0.79036771,63269.0,63268.0,0.004]
[1726936468797,0.79034767,63269.0,63268.0,0.004]
[1726936469031,0.79034767,63269.0,63268.0,0.002]
[1726936471884,1.10645767,63269.0,63268.0,0.002]
[1726936472541,0.79034767,63269.0,63268.0,0.002]
[1726936473682,0.79034767,63269.0,63268.0,0.004]
[1726936473910,0.66765201,63269.0,63268.0,0.004]
[1726936474128,0.78869567,63269.0,63268.0,0.004]
[1726936475004,0.78952167,63269.0,63268.0,0.004]
[1726936475909,0.78952167,63269.0,63268.0,0.002]
[1726936477301,1.10563167,63269.0,63268.0,0.002]
[1726936481770,1.10567708,63269.0,63268.0,0.002]
[1726936483883,1.10567708,63269.0,63268.0,0.004]
[1726936484934,1.08919833,63269.0,63268.0,0.004]
[1726936485101,1.10568928,63269.0,63268.0,0.004]
[1726936486532,0.78957928,63269.0,63268.0,0.004]
[1726936487362,1.10568928,63269.0,63268.0,0.004]
[1726936487629,0.78957928,63269.0,63268.0,0.004]
[1726936487838,1.10568928,63269.0,63268.0,0.002]
[1726936488037,0.78957928,63269.0,63268.0,0.004]
[1726936488455,0.78957928,63269.0,63268.0,0.002]
[1726936488670,1.10568928,63269.0,63268.0,0.002]
[1726936489527,0.78957928,63269.0,63268.0,0.002]
[1726936490786,1.10568928,63269.0,63268.0,0.002]
[1726936491002,0.78957928,63269.0,63268.0,0.002]
[1726936491625,0.78960076,63269.0,63268.0,0.002]
[1726936491835,0.78960076,63269.0,63268.0,0.004]
[1726936493582,0.77308833,63269.0,63268.0,0.004]
[1726936494008,0.78955956,63269.0,63268.0,0.004]
[1726936495760,0.78955524,63269.0,63268.0,0.004]
[1726936496242,0.81432804,63269.0,63268.0,0.004]
[1726936497499,0.81432804,63269.0,63268.0,0.005652]
[1726936499543,0.81432804,63269.0,63268.0,0.03079166]
[1726936499740,0.81432804,63269.0,63268.0,0.005652]
[1726936499961,0.81432804,63269.0,63268.0,0.0307871]
[1726936500168,0.81432804,63269.0,63268.0,0.005652]
[1726936500611,0.81432804,63269.0,63268.0,0.0287871]
[1726936500830,0.81432804,63269.0,63268.0,0.003652]
[1726936501694,0.81432804,63269.0,63268.0,0.005652]
[1726936506638,0.81434368,63269.0,63268.0,0.005652]
[1726936507097,0.79786113,63269.0,63268.0,0.005652]
[1726936507308,0.81434117,63269.0,63268.0,0.005652]
[1726936508075,0.34017617,63269.0,63268.0,0.005652]
[1726936508476,0.49823117,63269.0,63268.0,0.03078317]
[1726936509564,0.05607884,63269.0,63268.0,0.10515527]
[1726936509777,0.03130604,63269.0,63268.0,0.67052727]
[1726936511616,0.014826,63269.0,63268.0,0.67052727]
[1726936511858,0.03121234,63269.0,63268.0,0.67052727]
[1726936512291,0.02421234,63269.0,63268.0,0.66952727]
[1726936512743,0.02121234,63269.0,63268.0,0.66852727]
[1726936513027,0.02221234,63269.0,63268.0,0.66852727]
[1726936513239,0.01821234,63269.0,63268.0,0.66852727]
[1726936513682,0.02021234,63269.0,63268.0,0.66852727]
[1726936514792,0.003826,63269.0,63268.0,0.66852727]
[1726936515035,0.02024954,63269.0,63268.0,0.66852727]
[1726936516411,0.02024954,63269.0,63268.0,0.18684017]
[1726936520620,0.02033345,63269.0,63268.0,0.18684017]
[1726936523559,0.02033345,63269.0,63268.0,0.02878317]
[1726936524941,0.02033054,63269.0,63268.0,0.02878317]
[1726936531648,0.02033054,63269.0,63268.0,0.02251311]
[1726936531649,0.003826,63269.0,63268.0,0.02251311]
[1726936531868,0.02031142,63269.0,63268.0,0.02251311]
[1726936533199,0.17836642,63269.0,63268.0,0.02251311]
[1726936534135,0.17836642,63269.0,63268.0,0.06566322]
[1726936534784,0.02031142,63269.0,63268.0,0.06566322]
[1726936535020,0.003826,63269.0,63268.0,0.06566322]
[1726936535242,0.02032723,63269.0,63268.0,0.06566322]
[1726936538181,1.3880659,63269.0,63268.0,0.02051311]
[1726936538641,1.3880659,63269.0,63268.0,0.001652]
[1726936538885,1.38802733,63269.0,63268.0,0.001652]
[1726936539111,1.38602733,63269.0,63268.0,0.001652]
[1726936539343,1.204772,63264.0,63263.0,0.001652]
[1726936539573,1.50533199,63264.0,63263.0,0.001652]
[1726936539803,1.60019935,63264.0,63263.0,0.001652]
[1726936540259,1.50533199,63264.0,63263.0,0.001652]
[1726936540494,1.51733199,63264.0,63263.0,0.002652]
[1726936540942,1.50533199,63264.0,63263.0,0.001652]
[1726936541170,1.51733199,63264.0,63263.0,0.002652]
[1726936541891,1.93353227,63264.0,63263.0,0.002652]
[1726936542112,2.03839963,63264.0,63263.0,0.003652]
[1726936542352,1.94353227,63264.0,63263.0,0.003652]
[1726936544209,1.96180604,63264.0,63263.0,0.003652]
[1726936545499,1.96169645,63264.0,63263.0,0.003652]
[1726936552354,1.96164476,63264.0,63263.0,0.003652]
[1726936554237,1.9452781,63264.0,63263.0,0.003652]
[1726936555133,1.96167354,63264.0,63263.0,0.003652]
[1726936556304,1.97806423,63264.0,63263.0,0.003652]
[1726936556594,1.96166924,63264.0,63263.0,0.003652]
[1726936559523,1.86336924,63264.0,63263.0,0.003652]
[1726936559745,1.54723424,63264.0,63263.0,0.003652]
[1726936560395,1.07978181,63264.0,63263.0,0.002652]
[1726936560603,0.87469047,63264.0,63263.0,0.001652]
[1726936560808,0.88569047,63264.0,63263.0,0.002652]
[1726936561022,1.19682547,63264.0,63263.0,0.002652]
[1726936561253,1.19682547,63264.0,63263.0,0.00306773]
[1726936561476,1.20182547,63264.0,63263.0,0.002652]
[1726936561693,0.87469047,63264.0,63263.0,0.001652]
[1726936562127,0.88069047,63264.0,63263.0,0.004652]
[1726936562790,1.19682547,63264.0,63263.0,0.002652]
[1726936563036,0.88069047,63264.0,63263.0,0.002652]
[1726936563711,1.20282547,63264.0,63263.0,0.002652]
[1726936563918,1.19343433,63264.0,63263.0,0.003652]
[1726936564082,1.20978848,63264.0,63263.0,0.005652]
[1726936564333,1.20978848,63264.0,63263.0,0.003652]
[1726936567507,1.20983215,63264.0,63263.0,0.003652]
[1726936570601,1.19343433,63264.0,63263.0,0.003652]
[1726936570850,1.20981646,63264.0,63263.0,0.003652]
[1726936573924,1.20981646,63264.0,63263.0,0.005652]
[1726936573925,0.019,63264.0,63263.0,0.005652]
[1726936574202,0.019,63264.0,63263.0,0.101852]
[1726936574203,0.03531293,63264.0,63263.0,0.101852]
[1726936574458,0.03531293,63264.0,63263.0,0.41839079]
[1726936574713,0.03531293,63264.0,63263.0,0.59502859]
[1726936574907,0.02831293,63264.0,63263.0,0.59402859]
[1726936575408,0.02831293,63264.0,63263.0,0.91016859]
[1726936575635,0.12186966,63268.0,63267.0,0.002]
[1726936575876,0.12186966,63268.0,63267.0,0.09291526]
[1726936576116,0.12186966,63268.0,63267.0,0.0933184]
[1726936576359,0.12186966,63268.0,63267.0,0.00240314]
[1726936577344,0.12786966,63268.0,63267.0,0.00340314]
[1726936577851,0.12186966,63268.0,63267.0,0.00240314]
[1726936578082,0.12786966,63268.0,63267.0,0.21986493]
[1726936578325,0.14914105,63268.0,63267.0,0.21986493]
[1726936578552,0.14914105,63268.0,63267.0,0.06180493]
[1726936578976,0.14414105,63268.0,63267.0,0.06180493]
[1726936579202,0.14414105,63268.0,63267.0,0.21986493]
[1726936579419,0.14814105,63268.0,63267.0,0.21986493]
[1726936579996,0.14214105,63268.0,63267.0,0.21986493]
[1726936580233,0.14714105,63268.0,63267.0,0.21986493]
[1726936580360,0.14714105,63268.0,63267.0,0.16046314]
[1726936580776,0.14214105,63268.0,63267.0,0.16046314]
[1726936581020,0.14614105,63268.0,63267.0,0.00240314]
[1726936584063,0.12986966,63268.0,63267.0,0.00240314]
[1726936585214,0.28792666,63268.0,63267.0,0.00240314]
[1726936585429,0.12986966,63268.0,63267.0,0.00240314]
[1726936586966,1.08321033,63268.0,63267.0,0.00040314]
[1726936587340,1.08321033,63268.0,63263.0,0.001652]
[1726936587341,0.31612,63267.0,63263.0,0.001652]
[1726936587629,0.59524566,63264.0,63263.0,0.001652]
[1726936587800,0.91138066,63264.0,63263.0,0.001652]
[1726936588842,1.58546933,63264.0,63263.0,0.001652]
[1726936589120,1.58546933,63264.0,63263.0,0.002652]
[1726936589471,1.58546933,63264.0,63263.0,0.001652]
[1726936590101,1.98480433,63264.0,63263.0,0.001652]
[1726936590325,2.00290858,63264.0,63263.0,0.001652]
[1726936590746,2.00890858,63264.0,63263.0,0.002652]
[1726936590946,2.01890858,63264.0,63263.0,0.003652]
[1726936591163,1.42272,63259.0,63258.0,0.000826]
[1726936591387,1.90171733,63259.0,63258.0,0.000826]
[1726936592684,1.61355733,63259.0,63258.0,0.002826]
[1726936593110,1.59955733,63259.0,63258.0,0.001826]
[1726936593254,1.59955733,63259.0,63258.0,0.002826]
[1726936593457,1.61355733,63259.0,63258.0,0.002826]
[1726936593892,1.58555733,63259.0,63258.0,0.000826]
[1726936594093,1.58555733,63259.0,63236.0,0.002]
[1726936594094,0.1,63253.0,63236.0,0.002]
[1726936594299,0.44115367,63252.0,63251.0,0.23708481]
[1726936594498,0.44115367,63252.0,63238.0,0.002]
[1726936594499,0.316261,63239.0,63238.0,0.00035133]
[1726936594700,0.316261,63239.0,63237.0,0.002]
[1726936594701,0.316265,63238.0,63237.0,0.002]
[1726936594864,0.59544066,63238.0,63237.0,0.002]
[1726936595329,0.28409733,63238.0,63234.0,0.000825]
[1726936595558,1.01174366,63235.0,63234.0,0.000825]
[1726936595794,1.17479733,63235.0,63234.0,0.000825]
[1726936596281,1.49107733,63235.0,63234.0,0.01950912]
[1726936596507,1.49107733,63235.0,63234.0,0.000825]
[1726936597396,1.50107733,63235.0,63234.0,0.000825]
[1726936597940,1.18479733,63235.0,63234.0,0.000825]
[1726936598161,0.70546366,63235.0,63234.0,0.000825]
[1726936598395,1.03174366,63235.0,63234.0,0.000825]
[1726936598622,1.01174366,63235.0,63234.0,0.000825]
[1726936598848,1.02274366,63235.0,63234.0,0.000825]
[1726936599081,1.03374366,63235.0,63234.0,0.000825]
[1726936599327,1.02274366,63235.0,63234.0,0.000825]
[1726936599556,1.02074366,63235.0,63234.0,0.000825]
[1726936599780,1.02974366,63235.0,63234.0,0.000825]
[1726936603300,1.26809733,63235.0,63234.0,0.000825]
[1726936603529,1.58437733,63235.0,63234.0,0.000825]
[1726936604757,1.57537733,63235.0,63234.0,0.000825]
[1726936604999,1.58037733,63235.0,63234.0,0.000825]
[1726936605203,1.59137733,63235.0,63234.0,0.000825]
[1726936605714,1.58533823,63235.0,63234.0,0.000825]
[1726936605949,1.59933823,63235.0,63234.0,0.000825]
[1726936606197,1.61333823,63235.0,63234.0,0.000825]
[1726936606668,1.59933823,63235.0,63234.0,0.000825]
[1726936606941,1.61333823,63235.0,63234.0,0.000825]
[1726936607660,1.70843823,63235.0,63234.0,0.000825]
[1726936607957,2.01071823,63235.0,63234.0,0.000825]
[1726936608203,1.70843823,63235.0,63234.0,0.000825]
[1726936608443,1.64439366,63231.0,63230.0,0.000825]
[1726936608697,1.90254733,63231.0,63230.0,0.000825]
[1726936608939,1.32821566,63224.0,63223.0,0.23721228]
[1726936609186,1.58636933,63224.0,63223.0,0.23721228]
[1726936609408,0.474562,63216.0,63213.0,0.002]
[1726936609634,0.69560566,63216.0,63212.0,0.002]
[1726936610108,0.258195,63213.0,63212.0,0.002]
[1726936610321,0.258195,63213.0,63204.0,0.317256]
[1726936610322,0.1582,63211.0,63210.0,0.0057784]
[1726936610638,0.1582,63211.0,63210.0,0.0037784]
[1726936610639,0.34299199,63211.0,63210.0,0.0037784]
[1726936610903,0.97579199,63211.0,63210.0,0.0037784]
[1726936611713,0.97579199,63211.0,63210.0,0.0047784]
[1726936613175,1.45524566,63211.0,63210.0,0.0047784]
[1726936613854,1.14084566,63211.0,63210.0,0.0037784]
[1726936614083,0.82444566,63211.0,63210.0,0.0057784]
[1726936614324,0.82644566,63211.0,63210.0,0.0057784]
[1726936614577,1.14284566,63211.0,63210.0,0.0037784]
[1726936614763,1.24084566,63211.0,63210.0,0.0046044]
[1726936615027,1.25184566,63211.0,63210.0,0.0046044]
[1726936615454,1.56824566,63211.0,63210.0,0.0046044]
[1726936615734,1.55524566,63211.0,63210.0,0.0046044]
[1726936615988,1.56524566,63211.0,63210.0,0.0046044]
[1726936616444,1.55524566,63211.0,63210.0,0.0046044]
[1726936616927,1.56524566,63211.0,63210.0,0.0046044]
[1726936617160,1.57324566,63211.0,63210.0,0.0046044]
[1726936617648,1.58351073,63211.0,63210.0,0.0046044]
[1726936617873,1.59451073,63211.0,63210.0,0.0046044]
[1726936618097,1.57624566,63211.0,63210.0,0.0046044]
[1726936618338,1.64054566,63211.0,63210.0,0.0046044]
[1726936618555,1.64454566,63211.0,63210.0,0.0046044]
[1726936618776,1.65854566,63211.0,63210.0,0.0046044]
[1726936619252,1.66307762,63211.0,63210.0,0.0046044]
[1726936619737,1.67707762,63211.0,63210.0,0.0046044]
[1726936620162,1.66307762,63211.0,63210.0,0.0046044]
[1726936620609,1.67707762,63211.0,63210.0,0.0046044]
[1726936623211,1.58324566,63211.0,63210.0,0.0046044]
[1726936624359,1.55524566,63211.0,63210.0,0.0046044]
[1726936624604,1.58224566,63211.0,63210.0,0.0046044]
[1726936626273,1.58224566,63211.0,63210.0,0.0066044]
[1726936627475,1.58224566,63211.0,63210.0,0.0046044]
[1726936628167,1.26584566,63211.0,63210.0,0.0046044]
[1726936630044,1.08105367,63211.0,63210.0,0.0046044]
[1726936630306,1.26584566,63211.0,63210.0,0.0046044]
[1726936633160,1.58224566,63211.0,63210.0,0.0046044]
[1726936634029,1.67574566,63211.0,63210.0,0.0046044]
[1726936635854,1.99214566,63211.0,63210.0,0.0046044]
[1726936636788,2.07024566,63211.0,63210.0,0.0046044]
[1726936637272,1.523935,63205.0,63204.0,0.000826]
[1726936637534,1.87178066,63205.0,63204.0,0.000826]
[1726936637997,1.55535066,63205.0,63204.0,0.000826]
[1726936638440,1.56235066,63205.0,63204.0,0.000826]
[1726936639571,1.58053586,63205.0,63204.0,0.000826]
[1726936640272,1.58853586,63205.0,63204.0,0.000826]
[1726936641197,1.57353586,63205.0,63204.0,0.000826]
[1726936641475,1.59853586,63205.0,63204.0,0.000826]
[1726936641926,1.58653586,63205.0,63204.0,0.000826]
[1726936642360,1.60053586,63205.0,63204.0,0.000826]
[1726936642812,1.58753586,63205.0,63204.0,0.000826]
[1726936643086,1.60153586,63205.0,63204.0,0.000826]
[1726936643813,1.91796586,63205.0,63204.0,0.000826]
[1726936644063,0.574675,63201.0,63200.0,0.000826]
[1726936644284,0.85911214,63201.0,63200.0,0.000826]
[1726936644508,1.80846214,63201.0,63200.0,0.000826]
[1726936645846,1.82246214,63201.0,63200.0,0.000826]
[1726936646066,1.88600897,63201.0,63200.0,0.000826]
[1726936646297,1.90000897,63201.0,63200.0,0.000826]
[1726936647017,1.88600897,63201.0,63200.0,0.000826]
[1726936647238,1.87200897,63201.0,63200.0,0.000826]
[1726936647457,1.88600897,63201.0,63200.0,0.000826]
[1726936647903,1.90000897,63201.0,63200.0,0.000826]
[1726936648793,1.88600897,63201.0,63200.0,0.000826]
[1726936649043,1.90000897,63201.0,63200.0,0.000826]
[1726936649282,1.88600897,63201.0,63200.0,0.000826]
[1726936649506,1.90000897,63201.0,63200.0,0.000826]
[1726936649723,1.88600897,63201.0,63200.0,0.000826]
[1726936650184,1.90000897,63201.0,63200.0,0.000826]
[1726936650838,1.87200897,63201.0,63200.0,0.000826]
[1726936651305,1.88600897,63201.0,63200.0,0.000826]
[1726936651781,1.87200897,63201.0,63200.0,0.000826]
[1726936652014,1.88600897,63201.0,63200.0,0.000826]
[1726936652254,1.90000897,63201.0,63200.0,0.000826]
[1726936662370,1.97089752,63201.0,63200.0,0.000826]
[1726936665902,1.97089752,63201.0,63194.0,0.000826]
[1726936665903,1.20768,63195.0,63194.0,0.000826]
[1726936666133,1.49212691,63195.0,63194.0,0.000826]
[1726936667731,1.50212691,63195.0,63194.0,0.000826]
[1726936668675,1.51312691,63195.0,63194.0,0.000826]
[1726936670212,1.39173367,63195.0,63194.0,0.000826]
[1726936670437,1.09383605,63195.0,63194.0,0.000826]
[1726936670662,1.21522929,63195.0,63194.0,0.000826]
[1726936670889,1.53170929,63195.0,63194.0,0.000826]
[1726936678027,1.53170929,63195.0,63183.0,0.23721228]
[1726936678028,0.791412,63178.0,63177.0,0.0927]
[1726936678265,0.258282,63178.0,63177.0,0.0927]
[1726936678495,0.316523,63187.0,63178.0,0.081]
[1726936678721,0.1,63183.0,63179.0,0.0927]
[1726936678951,0.1,63180.0,63179.0,0.0927]
[1726936679192,0.22139324,63181.0,63179.0,0.0927]
[1726936679422,0.22139324,63181.0,63180.0,0.002]
[1726936681547,0.23339324,63181.0,63180.0,0.002]
[1726936681770,0.39066824,63181.0,63180.0,0.002]
[1726936681994,0.023,63181.0,63180.0,0.17960946]
[1726936682261,0.023,63181.0,63180.0,0.26990946]
[1726936682503,0.023,63181.0,63180.0,1.0045993]
[1726936682751,0.023,63181.0,63180.0,0.68487893]
[1726936682995,0.023,63181.0,63180.0,1.00143393]
[1726936683688,0.012,63181.0,63180.0,1.00143393]
[1726936683930,0.015,63181.0,63180.0,1.00143393]
[1726936684385,0.012,63181.0,63180.0,1.00143393]
[1726936685623,0.23741503,63186.0,63185.0,0.250565]
[1726936686074,0.22139324,63188.0,63187.0,0.002]
[1726936687203,0.69616724,63188.0,63187.0,0.002]
[1726936687692,0.70116724,63188.0,63187.0,0.002]
[1726936687932,0.70616724,63188.0,63187.0,0.002]
[1726936688361,0.70116724,63188.0,63187.0,0.002]
[1726936688818,0.70616724,63188.0,63187.0,0.002]
[1726936689752,0.38965224,63188.0,63187.0,0.002]
[1726936689988,0.38465224,63188.0,63187.0,0.002]
[1726936690475,0.38965224,63188.0,63187.0,0.002]
[1726936692796,0.268259,63188.0,63187.0,0.018027]
[1726936693067,0.01,63188.0,63187.0,0.583107]
[1726936693304,0.01,63188.0,63187.0,0.6067059]
[1726936693777,0.00974831,63188.0,63187.0,0.6067059]
[1726936695717,0.00974831,63188.0,63187.0,0.9232259]
[1726936695921,0.00974831,63188.0,63187.0,1.43436177]
[1726936696164,0.00974831,63188.0,63187.0,1.3386459]
[1726936696643,0.00974831,63188.0,63187.0,1.43354476]
[1726936696882,0.00474831,63188.0,63187.0,1.43354476]
[1726936697092,0.001652,63191.0,63190.0,0.881562]
[1726936697329,0.001652,63191.0,63190.0,1.10551132]
[1726936697570,0.001652,63191.0,63190.0,1.05806127]
[1726936697760,0.001652,63191.0,63190.0,0.90284436]
[1726936699620,0.001652,63191.0,63190.0,0.58633936]
[1726936699842,0.001652,63191.0,63190.0,0.58833936]
[1726936700298,0.001652,63191.0,63190.0,0.58633936]
[1726936700752,0.001652,63191.0,63190.0,0.69099315]
[1726936701717,0.001652,63191.0,63190.0,0.69199315]
[1726936704180,0.001652,63191.0,63190.0,0.21723615]
[1726936704418,0.001652,63191.0,63190.0,0.27083436]
[1726936704655,0.001652,63191.0,63190.0,0.02228236]
[1726936704892,0.476402,63191.0,63190.0,0.02557747]
[1726936705359,0.476402,63191.0,63190.0,0.002]
[1726936705599,0.476402,63191.0,63190.0,0.003]
[1726936706768,0.476402,63191.0,63190.0,0.002]
[1726936707002,0.482402,63191.0,63190.0,0.002]
[1726936707241,0.167902,63191.0,63190.0,0.002]
[1726936707469,0.158902,63191.0,63190.0,0.0260241]
[1726936707690,0.488402,63191.0,63190.0,0.02128236]
[1726936707961,0.488402,63191.0,63190.0,0.02556871]
[1726936710970,0.171902,63191.0,63190.0,0.02556871]
[1726936714625,0.013652,63191.0,63190.0,0.02556871]
[1726936715286,0.013652,63191.0,63190.0,0.06777538]
[1726936722395,0.013652,63191.0,63190.0,0.22402738]
[1726936722680,0.013652,63191.0,63190.0,0.85903738]
[1726936722901,0.013652,63191.0,63190.0,0.95683738]
[1726936723942,0.007652,63191.0,63190.0,0.95683738]
[1726936724597,0.000652,63191.0,63190.0,0.95683738]
[1726936725589,0.000652,63191.0,63190.0,0.95783738]
[1726936726282,0.000652,63191.0,63190.0,0.95866338]
[1726936731000,0.000652,63191.0,63190.0,1.27516838]
[1726936733969,0.000652,63191.0,63190.0,1.27416838]
[1726936734215,0.000652,63191.0,63190.0,1.27516838]
[1726936734434,0.000652,63191.0,63190.0,1.27416838]
[1726936734875,0.000652,63191.0,63190.0,1.27516838]
[1726936735095,0.000652,63191.0,63190.0,1.32260581]
[1726936735307,0.000652,63191.0,63190.0,1.27516838]
[1726936735509,0.000652,63191.0,63190.0,1.32260581]
[1726936735927,0.000652,63191.0,63190.0,1.27516838]
[1726936737660,0.000652,63191.0,63190.0,1.32260581]
[1726936737867,0.000652,63191.0,63190.0,1.32262199]
[1726936740023,0.000652,63191.0,63190.0,1.27516838]
[1726936740734,0.000652,63191.0,63190.0,1.32263237]
[1726936741703,0.000652,63191.0,63190.0,1.27516838]
[1726936741953,0.000652,63191.0,63190.0,1.00612737]
[1726936742199,0.000652,63191.0,63190.0,0.5496157]
[1726936742457,0.000652,63191.0,63190.0,0.2331107]
[1726936742696,0.000652,63191.0,63190.0,0.18564671]
[1726936742916,0.000652,63191.0,63190.0,0.8218215]
[1726936743136,0.000652,63191.0,63190.0,0.90965671]
[1726936743379,0.000652,63191.0,63190.0,1.2736257]
[1726936743666,0.000652,63191.0,63190.0,1.27362725]
[1726936743900,0.000652,63191.0,63190.0,1.38107905]
[1726936744133,0.000652,63191.0,63190.0,1.50247229]
[1726936744596,0.000652,63191.0,63190.0,1.59737952]
[1726936744806,0.000652,63191.0,63190.0,1.59837952]
[1726936745003,0.000652,63191.0,63190.0,1.59737952]
[1726936745250,0.000652,63191.0,63190.0,1.62237952]
[1726936745493,0.001652,63191.0,63190.0,1.5460554]
[1726936745748,0.001652,63191.0,63190.0,1.43820518]
[1726936745925,0.002652,63191.0,63190.0,1.55959842]
[1726936746576,0.002652,63191.0,63190.0,1.55958866]
[1726936746823,0.002652,63191.0,63190.0,1.5440554]
[1726936747271,0.002652,63191.0,63190.0,1.66265957]
[1726936747713,0.002652,63191.0,63190.0,1.64607646]
[1726936747935,0.002652,63191.0,63190.0,1.54402006]
[1726936748409,0.002652,63191.0,63190.0,1.66260978]
[1726936749492,0.002652,63191.0,63190.0,1.54402006]
[1726936749670,0.002652,63191.0,63190.0,1.66260978]
[1726936750141,0.002652,63191.0,63190.0,1.54402006]
[1726936750587,0.002652,63191.0,63190.0,1.63886688]
[1726936751052,0.002652,63191.0,63190.0,1.63886508]
[1726936751765,0.002652,63191.0,63190.0,1.54402006]
[1726936752003,0.002652,63191.0,63190.0,1.63886008]
[1726936756539,0.002652,63191.0,63190.0,1.63960257]
[1726936762131,0.002652,63191.0,63190.0,1.54276255]
[1726936762341,0.002652,63191.0,63190.0,1.42336931]
[1726936762809,0.002652,63191.0,63190.0,1.42333538]
[1726936763463,0.002652,63191.0,63190.0,1.49447197]
[1726936765719,0.002652,63191.0,63190.0,1.49247197]
[1726936766428,0.002652,63191.0,63190.0,1.5181754]
[1726936767861,0.002652,63191.0,63190.0,1.54394264]
[1726936768126,0.002652,63191.0,63190.0,1.66533588]
[1726936768336,0.002652,63191.0,63190.0,1.67886914]
[1726936768557,0.002652,63191.0,63190.0,1.67886871]
[1726936768778,0.002652,63191.0,63190.0,1.72332247]
[1726936771077,0.002652,63191.0,63190.0,1.69252596]
[1726936771303,0.002652,63191.0,63190.0,1.70980065]
[1726936776627,0.002652,63191.0,63190.0,1.33235374]
[1726936776835,0.002652,63191.0,63190.0,1.45100313]
[1726936777047,0.002652,63191.0,63190.0,1.33235374]
[1726936777254,0.002652,63191.0,63190.0,1.40427631]
[1726936777580,0.002652,63191.0,63190.0,1.40268376]
[1726936777581,0.000652,63191.0,63190.0,1.40268376]
[1726936778011,0.001652,63191.0,63190.0,1.40468376]
[1726936778842,0.002652,63191.0,63190.0,1.40468376]
[1726936779299,0.001652,63191.0,63190.0,1.40468376]
[1726936779793,0.002652,63191.0,63190.0,1.40468376]
[1726936780451,0.002652,63191.0,63190.0,1.30976119]
[1726936780661,0.000652,63191.0,63190.0,1.30776119]
[1726936781103,0.001652,63191.0,63190.0,1.30976119]
[1726936782177,0.002652,63191.0,63190.0,1.30976119]
[1726936784105,0.002652,63191.0,63190.0,1.42841058]
[1726936784317,0.001652,63191.0,63190.0,1.42641058]
[1726936784790,0.002652,63191.0,63190.0,1.42741058]
[1726936785625,0.001652,63191.0,63190.0,1.42741058]
[1726936786033,0.002652,63191.0,63190.0,1.42741058]
[1726936786883,0.002652,63191.0,63190.0,1.4274606]
[1726936787152,0.002652,63191.0,63190.0,1.42709593]
[1726936787367,0.002652,63191.0,63190.0,1.40977846]
[1726936787587,0.002652,63191.0,63190.0,1.42710227]
[1726936787872,0.002652,63191.0,63190.0,1.45010227]
[1726936788078,0.002652,63191.0,63190.0,1.49645653]
[1726936788785,0.002652,63191.0,63190.0,1.81296153]
[1726936788998,0.001652,63201.0,63190.0,1.81296153]
[1726936788999,0.001652,63201.0,63200.0,0.793137]
[1726936789225,0.001652,63201.0,63200.0,1.36909133]
[1726936789441,0.001652,63201.0,63200.0,1.37162129]
[1726936789681,0.001652,63201.0,63200.0,1.39462129]
[1726936790778,0.001652,63201.0,63200.0,1.37729748]
[1726936791005,0.001652,63201.0,63200.0,1.55765693]
[1726936791707,0.002652,63201.0,63200.0,1.56665693]
[1726936792376,0.003652,63201.0,63200.0,1.57265693]
[1726936795412,0.003652,63201.0,63200.0,1.69118821]
[1726936797015,0.003652,63201.0,63200.0,1.69167653]
[1726936798347,0.003652,63201.0,63200.0,1.57314525]
[1726936801639,0.003652,63201.0,63200.0,1.57352962]
[1726936801894,0.003652,63201.0,63200.0,1.59167616]
[1726936802129,0.003652,63201.0,63200.0,1.46526031]
[1726936803230,0.002652,63201.0,63200.0,1.36448292]
[1726936803449,0.001652,63201.0,63200.0,0.90033075]
[1726936803712,0.003652,63201.0,63200.0,0.85994234]
[1726936803917,0.003652,63201.0,63200.0,0.67878288]
[1726936804144,0.003652,63201.0,63200.0,0.67178288]
[1726936804379,0.003652,63201.0,63200.0,0.22003234]